{"text_format":"1","workbook":"xlsx","n_sheets":2,"sheets":["Array Impedance Calculator","Settings"],"not_rendered":{"charts":0,"images":0,"macros":1,"external_links":0,"defined_names":2,"comments":0,"pivot_tables":0},"unopened":[],"bounds":{"document_bytes":16777216,"sheet_cells":100000,"rows_first":2000,"rows_last":500,"rows_between":2000,"halvings":0,"cell_chars":16384,"cell_head_chars":4096},"cells_cut":0,"cells_raw":0,"read":"whole","date_system":"1900"}

{"sheet":"Array Impedance Calculator","index":0,"n_rows":0,"n_cols":0,"rows_kept":0,"cut":false,"hidden":false,"merged":[]}

{"sheet":"Settings","index":1,"n_rows":17,"n_cols":6,"rows_kept":17,"cut":false,"hidden":true,"merged":[]}
["Attenuation Setting (dB)","Minimum Impedance (Ohms)","Nominal Impedance (Ohms)","Impedance Multiplier",null,"Max Speaker Boxes"]
[0,13.1,16,1,null,1]
[-1.5,{"$f":"$B$2*D3","v":19.649999999999999},{"$f":"$C$2*D3","v":24},1.5,null,2]
[-3,26.2,32,2,null,3]
[-4.5,39.299999999999997,48,3,null,4]
[-6,52.4,64,4,null,5]
[-7.5,65.5,80,5,null,6]
[-9,78.599999999999994,96,6,null,7]
[-10.5,91.7,112,7,null,8]
[-12,104.8,128,8,null,9]
[-13.5,117.89999999999999,144,9,null,10]
[-15,131,160,10,null,11]
[null,null,null,null,null,12]
[null,null,null,null,null,13]
[null,null,null,null,null,14]
[null,null,null,null,null,15]
[null,null,null,null,null,16]